fUST/lending_fUST_20250908
["ID","MTS","AMOUNT","RATE_DAILY","PERIOD"]
[384292800,1757321439103,-404.78966943,0.00013982,2]
[384292801,1757321439112,-614.21076326,0.00013982,2]
[384292802,1757321439122,-480.0,0.00013982,2]
[384292803,1757321439131,-480.0,0.00013982,2]
[384292804,1757321439141,-480.0,0.00013982,2]
[384292805,1757321439151,-166.282,0.00014038,2]
[384292806,1757321439160,-530.71506861,0.00014041,2]
[384292807,1757321439170,-217.62647793,0.00014041,2]
[384292808,1757321439179,-160.0,0.00014041,2]
[384292809,1757321439188,-160.0,0.00014041,2]
[384292810,1757321439199,-203.26219058,0.00014041,2]
[384292811,1757321439212,-233.03190505,0.00014041,2]
[384292812,1757321439222,-846.71598105,0.00014041,2]
[384292813,1757321439232,-160.0,0.00014041,2]
[384292814,1757321439241,-480.0,0.00014043,2]
[384292815,1757321439251,-650.17,0.00014043,2]
[384292816,1757321439260,-480.0,0.00014043,2]
[384292817,1757321439270,-937.86,0.00014044,2]
[384292818,1757321439280,-644.34,0.00014044,2]
[384292819,1757321439292,-613.59,0.00014044,2]
[384292820,1757321439301,-480.0,0.00014044,2]
[384292821,1757321439311,-480.0,0.00014044,2]
[384292822,1757321439321,-480.0,0.00014044,2]
[384292823,1757321439331,-480.0,0.00014044,2]
[384292824,1757321439340,-667.92,0.00014044,2]
[384292825,1757321439349,-480.0,0.00014044,2]
[384292826,1757321439359,-480.0,0.00014044,2]
[384292827,1757321439369,-480.0,0.00014044,2]
[384292828,1757321439379,-480.0,0.00014044,2]
[384292829,1757321439388,-480.0,0.00014044,2]
[384292830,1757321439397,-151.0,0.00014044,2]
[384292831,1757321439407,-151.0,0.00014044,2]
[384292832,1757321439416,-480.0,0.00014045,2]
[384292833,1757321439426,-533.99684515,0.00014045,2]
[384292834,1757321439435,-480.0,0.00014045,2]
[384292835,1757321439445,-480.0,0.00014045,2]
[384292836,1757321439454,-480.0,0.00014045,2]
[384292837,1757321439463,-1450.89,0.00014045,2]
[384292838,1757321439474,-151.0,0.00014045,2]
[384292839,1757321439483,-300.810602,0.00014045,2]
[384292840,1757321439493,-879.59,0.00014045,2]
[384292841,1757321439502,-480.0,0.00014045,2]
[384292842,1757321439512,-574.46,0.00014045,2]
[384292843,1757321439521,-480.0,0.00014045,2]
[384292844,1757321439530,-480.0,0.00014045,2]
[384292845,1757321439540,-480.0,0.00014045,2]
[384292846,1757321439549,-4422.57,0.00014045,2]
[384292847,1757321439559,-480.0,0.00014045,2]
[384292848,1757321439570,-480.0,0.00014045,2]
[384292849,1757321439579,-480.0,0.00014045,2]
[384292850,1757321439589,-1378.86,0.00014045,2]
[384292851,1757321439598,-486.64,0.00014045,2]
[384292852,1757321439608,-590.58,0.00014045,2]
[384292853,1757321439617,-480.0,0.00014045,2]
[384292854,1757321439627,-2407.38,0.00014045,2]
[384292855,1757321439637,-480.0,0.00014045,2]
[384292856,1757321439646,-480.0,0.00014045,2]
[384292857,1757321439655,-1304.0,0.00014103,2]
[384292858,1757321439664,-320.21042644,0.00014103,2]
[384292859,1757321439673,-627.0,0.00014249,2]
[384292860,1757321439683,-154.47052933,0.00014255,2]
[384292861,1757321439692,-1075.08,0.00014255,2]
[384292862,1757321439702,-480.0,0.00014256,2]
[384292863,1757321439711,-480.0,0.00014256,2]
[384292864,1757321439721,-480.0,0.00014256,2]
[384292865,1757321439730,-168.0,0.00014257,2]
[384292866,1757321439740,-168.0,0.00014259,2]
[384292867,1757321439750,-300.0,0.00014264,2]
[384292869,1757321439759,-300.0,0.00014264,2]
[384292870,1757321439893,-300.0,0.00014264,2]
[384292871,1757321439904,-300.0,0.00014264,2]
[384292872,1757321439914,-300.0,0.00014264,2]
[384292873,1757321439924,-300.0,0.00014264,2]
[384292874,1757321439934,-300.0,0.00014264,2]
[384292875,1757321439943,-300.0,0.00014264,2]
[384292876,1757321439952,-300.0,0.00014264,2]
[384292877,1757321439962,-300.0,0.00014264,2]
[384292878,1757321439971,-300.0,0.00014264,2]
[384292879,1757321439981,-300.0,0.00014264,2]
[384292880,1757321439990,-300.0,0.00014264,2]
[384292881,1757321440000,-300.0,0.00014264,2]
[384292882,1757321440009,-300.0,0.00014264,2]
[384292883,1757321440019,-600.0,0.00014267,2]
[384292884,1757321440029,-409.0,0.0001428,2]
[384292885,1757321440038,-480.0,0.00014317,2]
[384292886,1757321440048,-650.17,0.00014317,2]
[384292887,1757321440058,-480.0,0.00014317,2]
[384292888,1757321440068,-937.86,0.00014318,2]
[384292890,1757321440077,-644.34,0.00014318,2]
[384292891,1757321440088,-613.59,0.00014318,2]
[384292892,1757321440098,-202.82635043,0.00014318,2]
[384292893,1757321440108,-480.0,0.00014318,2]
[384292894,1757321440118,-480.0,0.00014318,2]
[384292895,1757321440128,-480.0,0.00014318,2]
[384292896,1757321440137,-667.92,0.00014318,2]
[384292897,1757321440146,-480.0,0.00014318,2]
[384292898,1757321440155,-480.0,0.00014318,2]
[384292899,1757321440165,-480.0,0.00014318,2]
[384292900,1757321440174,-383.21198951,0.00014319,2]
[384292901,1757321440183,-480.0,0.00014319,2]
[384292902,1757321440192,-480.0,0.00014319,2]
[384292903,1757321440203,-480.0,0.00014319,2]
[384292904,1757321440214,-1450.89,0.00014319,2]
[384292905,1757321440223,-879.59,0.00014319,2]
[384292906,1757321440232,-480.0,0.00014319,2]
[384292907,1757321440242,-574.46,0.00014319,2]
[384292908,1757321440251,-480.0,0.00014319,2]
[384292909,1757321440261,-480.0,0.00014319,2]
[384292910,1757321440270,-480.0,0.00014319,2]
[384292911,1757321440281,-4422.57,0.00014319,2]
[384292912,1757321440290,-480.0,0.00014319,2]
[384292913,1757321440300,-480.0,0.00014319,2]
[384292914,1757321440311,-480.0,0.00014319,2]
[384292915,1757321440320,-1378.86,0.00014319,2]
[384292916,1757321440330,-486.64,0.00014319,2]
[384292917,1757321440339,-590.58,0.00014319,2]
[384292918,1757321440349,-480.0,0.00014319,2]
[384292919,1757321440359,-2407.38,0.00014319,2]
[384292920,1757321440368,-480.0,0.00014319,2]
[384292921,1757321440378,-151.0,0.00014319,2]
[384292922,1757321440387,-151.0,0.00014319,2]
[384292923,1757321440398,-480.0,0.00014319,2]
[384292924,1757321440407,-168.0,0.00014413,2]
[384292925,1757321440417,-168.0,0.0001442,2]
[384292926,1757321440427,-168.0,0.00014422,2]
[384292927,1757321440436,-500.0,0.00014443,2]
[384292928,1757321440446,-500.0,0.00014443,2]
[384292929,1757321440456,-500.0,0.0001447,2]
[384292930,1757321440466,-500.0,0.0001447,2]
[384292931,1757321440477,-500.0,0.00014476,2]
[384292932,1757321440486,-500.0,0.00014476,2]
[384292933,1757321440496,-500.0,0.00014476,2]
[384292934,1757321440505,-168.0,0.00014482,2]
[384292935,1757321440516,-500.0,0.00014503,2]
[384292936,1757321440526,-500.0,0.00014503,2]
[384292937,1757321440535,-500.0,0.00014504,2]
[384292938,1757321440544,-1075.08,0.00014529,2]
[384292939,1757321440555,-151.0,0.0001453,2]
[384292940,1757321440566,-151.0,0.0001453,2]
[384292941,1757321440575,-480.0,0.0001453,2]
[384292942,1757321440585,-162.527608,0.0001453,2]
[384292943,1757321440595,-162.527608,0.0001453,2]
[384292944,1757321440604,-162.527608,0.0001453,2]
[384292945,1757321440615,-162.527608,0.0001453,2]
[384292946,1757321440625,-480.0,0.0001453,2]
[384292947,1757321440634,-480.0,0.0001453,2]
[384292948,1757321440644,-168.0,0.00014558,2]
[384292949,1757321440654,-151.0,0.0001457,2]
[384292950,1757321440664,-500.0,0.0001457,2]
[384292951,1757321440673,-266.94472714,0.0001457,2]
[384292952,1757321440683,-500.0,0.0001457,2]
[384292953,1757321440693,-500.0,0.0001457,2]
[384292954,1757321440703,-480.0,0.00014591,2]
[384292955,1757321440713,-650.17,0.00014591,2]
[384292956,1757321440723,-609.32729653,0.00014591,2]
[384292957,1757321440733,-937.86,0.00014592,2]
[384292958,1757321440743,-644.34,0.00014592,2]
[384292959,1757321440753,-613.59,0.00014592,2]
[384292960,1757321440762,-480.0,0.00014592,2]
[384292961,1757321440772,-480.0,0.00014592,2]
[384292962,1757321440782,-480.0,0.00014592,2]
[384292963,1757321440791,-667.92,0.00014592,2]
[384292964,1757321440801,-480.0,0.00014592,2]
[384292965,1757321440813,-213.95835114,0.00014592,2]
[384292966,1757321440823,-480.0,0.00014592,2]
[384292967,1757321440834,-480.0,0.00014593,2]
[384292968,1757321440845,-480.0,0.00014593,2]
[384292969,1757321440855,-480.0,0.00014593,2]
[384292970,1757321440865,-1450.89,0.00014593,2]
[384292971,1757321440876,-879.59,0.00014593,2]
[384292972,1757321440889,-480.0,0.00014593,2]
[384292973,1757321440899,-574.46,0.00014593,2]
[384292974,1757321440910,-480.0,0.00014593,2]
[384292975,1757321440921,-480.0,0.00014593,2]
[384292976,1757321440931,-480.0,0.00014593,2]
[384292977,1757321440942,-4422.57,0.00014593,2]
[384292978,1757321440951,-406.71442908,0.00014593,2]
[384292979,1757321440961,-583.416714,0.00014593,2]
[384292980,1757321440971,-480.0,0.00014593,2]
[384292981,1757321440982,-1378.86,0.00014593,2]
[384292982,1757321440992,-486.64,0.00014593,2]
[384292983,1757321441002,-590.58,0.00014593,2]
[384292984,1757321441012,-480.0,0.00014593,2]
[384292985,1757321441022,-2407.38,0.00014593,2]
[384292986,1757321441032,-480.0,0.00014593,2]
[384292987,1757321441042,-480.0,0.00014593,2]
[384292988,1757321441051,-168.0,0.00014654,2]
[384292989,1757321441065,-1000.0,0.00014795,2]
[384292990,1757321441075,-1075.08,0.00014803,2]
[384292991,1757321441086,-480.0,0.00014804,2]
[384292992,1757321441096,-480.0,0.00014804,2]
[384292993,1757321441106,-480.0,0.00014804,2]
[384292994,1757321441115,-627.0,0.00014846,2]
[384292995,1757321441125,-480.0,0.00014865,2]
[384292996,1757321441135,-650.17,0.00014865,2]
[384292997,1757321441144,-937.86,0.00014866,2]
[384292998,1757321441154,-644.34,0.00014866,2]
[384292999,1757321441164,-613.59,0.00014866,2]
[384293000,1757321441174,-480.0,0.00014866,2]
[384293001,1757321441184,-480.0,0.00014866,2]
[384293002,1757321441195,-480.0,0.00014866,2]
[384293003,1757321441209,-667.92,0.00014866,2]
[384293004,1757321441218,-480.0,0.00014866,2]
[384293005,1757321441228,-480.0,0.00014866,2]
[384293006,1757321441238,-480.0,0.00014867,2]
[384293007,1757321441248,-480.0,0.00014867,2]
[384293008,1757321441257,-480.0,0.00014867,2]
[384293009,1757321441267,-1450.89,0.00014867,2]
[384293010,1757321441276,-879.59,0.00014867,2]
[384293011,1757321441288,-480.0,0.00014867,2]
[384293012,1757321441297,-574.46,0.00014867,2]
[384293013,1757321441308,-436.63956542,0.00014867,2]
[384293014,1757321441318,-325.54924188,0.00014867,2]
[384293015,1757321441327,-480.0,0.00014867,2]
[384293016,1757321441337,-4422.57,0.00014867,2]
[384293017,1757321441347,-480.0,0.00014867,2]
[384293018,1757321441356,-1378.86,0.00014867,2]
[384293019,1757321441366,-486.64,0.00014867,2]
[384293020,1757321441375,-590.58,0.00014867,2]
[384293021,1757321441385,-427.32674994,0.00014867,2]
[384293022,1757321441395,-2407.38,0.00014867,2]
[384293023,1757321441404,-480.0,0.00014867,2]
[384293024,1757321441414,-151.0,0.00014867,2]
[384293025,1757321441424,-151.0,0.00014867,2]
[384293026,1757321441434,-480.0,0.00014867,2]
[384293027,1757321441443,-168.0,0.00014969,2]
[384293028,1757321441453,-627.0,0.00014981,2]
[384293029,1757321441463,-1000.0,0.00014991,2]
[384293030,1757321441472,-1000.0,0.00014991,2]
[384293031,1757321441482,-160.0,0.00015,2]
[384293032,1757321441492,-420.0,0.00015013,2]
[384293033,1757321441501,-1000.0,0.00015018,2]
[384293034,1757321441511,-1000.0,0.00015024,2]
[384293035,1757321441521,-1000.0,0.00015024,2]
[384293036,1757321441531,-1000.0,0.00015051,2]
[384293037,1757321441540,-1000.0,0.00015051,2]
[384293038,1757321441549,-1000.0,0.00015052,2]
[384293039,1757321441559,-168.0,0.00015055,2]
[384293040,1757321441568,-150.0,0.00015068,2]
[384293041,1757321441578,-870.836064,0.00015068,2]
[384293042,1757321441587,-1075.08,0.00015077,2]
[384293043,1757321441597,-480.0,0.00015078,2]
[384293044,1757321441608,-162.527608,0.00015078,2]
[384293045,1757321441618,-162.527608,0.00015078,2]
[384293046,1757321441627,-162.527608,0.00015078,2]
[384293047,1757321441637,-162.527608,0.00015078,2]
[384293048,1757321441647,-480.0,0.00015078,2]
[384293049,1757321441656,-480.0,0.00015078,2]
[384293050,1757321441666,-151.0,0.00015078,2]
[384293051,1757321441676,-168.0,0.00015081,2]
[384293052,1757321441687,-1001.19960099,0.00015118,2]
[384293053,1757321441697,-168.0,0.00015131,2]
[384293054,1757321441707,-480.0,0.00015139,2]
[384293055,1757321441717,-650.17,0.00015139,2]
[384293056,1757321441727,-239.60591492,0.0001514,2]
[384293057,1757321441736,-937.86,0.0001514,2]
[384293058,1757321441746,-644.34,0.0001514,2]
[384293059,1757321441755,-613.59,0.0001514,2]
[384293060,1757321441766,-480.0,0.0001514,2]
[384293061,1757321441775,-480.0,0.0001514,2]
[384293062,1757321441785,-480.0,0.0001514,2]
[384293063,1757321441795,-667.92,0.0001514,2]
[384293064,1757321441804,-157.73082743,0.0001514,2]
[384293065,1757321441815,-480.0,0.0001514,2]
[384293066,1757321441825,-480.0,0.00015141,2]
[384293067,1757321441835,-480.0,0.00015141,2]
[384293068,1757321441845,-480.0,0.00015141,2]
[384293069,1757321441855,-1450.89,0.00015141,2]
[384293070,1757321441864,-879.59,0.00015141,2]
[384293071,1757321441874,-480.0,0.00015141,2]
[384293072,1757321441885,-574.46,0.00015141,2]
[384293073,1757321441895,-480.0,0.00015141,2]
[384293074,1757321441905,-4422.57,0.00015141,2]
[384293075,1757321441914,-480.0,0.00015141,2]
[384293076,1757321441924,-1378.86,0.00015141,2]
[384293077,1757321441934,-486.64,0.00015141,2]
[384293078,1757321441944,-590.58,0.00015141,2]
[384293079,1757321441953,-2407.38,0.00015141,2]
[384293080,1757321441963,-480.0,0.00015141,2]
[384293081,1757321441972,-480.0,0.00015141,2]
[384293082,1757321441982,-168.0,0.00015216,2]
[384293083,1757321441992,-160.0,0.00015233,2]
[384293084,1757321442002,-28354.73749808,0.00015307,2]
[384293085,1757321442011,-151.0,0.00015307,2]
[384293086,1757321442020,-279.190004,0.00015307,2]
[384293087,1757321442030,-1075.08,0.00015351,2]
[384293088,1757321442040,-480.0,0.00015352,2]
[384293089,1757321442049,-480.0,0.00015352,2]
[384293090,1757321442061,-288.4723378,0.00015352,2]
[384293091,1757321442070,-480.0,0.00015413,2]
[384293092,1757321442080,-650.17,0.00015413,2]
[384293093,1757321442090,-937.86,0.00015414,2]
[384293094,1757321442101,-644.34,0.00015414,2]
[384293095,1757321442111,-613.59,0.00015414,2]
[384293096,1757321442120,-480.0,0.00015414,2]
[384293097,1757321442130,-480.0,0.00015414,2]
[384293098,1757321442140,-480.0,0.00015414,2]
[384293099,1757321442150,-667.92,0.00015414,2]
[384293100,1757321442159,-480.0,0.00015414,2]
[384293101,1757321442169,-480.0,0.00015415,2]
[384293102,1757321442178,-480.0,0.00015415,2]
[384293103,1757321442188,-480.0,0.00015415,2]
[384293104,1757321442198,-1450.89,0.00015415,2]
[384293105,1757321442207,-151.0,0.00015415,2]
[384293106,1757321442220,-879.59,0.00015415,2]
[384293107,1757321442231,-480.0,0.00015415,2]
[384293108,1757321442240,-574.46,0.00015415,2]
[384293109,1757321442249,-480.0,0.00015415,2]
[384293110,1757321442259,-4422.57,0.00015415,2]
[384293111,1757321442268,-480.0,0.00015415,2]
[384293112,1757321442278,-1378.86,0.00015415,2]
[384293113,1757321442287,-486.64,0.00015415,2]
[384293114,1757321442297,-590.58,0.00015415,2]
[384293115,1757321442306,-2407.38,0.00015415,2]
[384293116,1757321442318,-480.0,0.00015415,2]
[384293117,1757321442327,-480.0,0.00015415,2]
[384293118,1757321442336,-168.0,0.00015481,2]
[384293119,1757321442346,-168.0,0.00015491,2]
[384293120,1757321442355,-168.0,0.00015504,2]
[384293121,1757321442365,-162.527608,0.00015527,2]
[384293122,1757321442375,-162.527608,0.00015527,2]
[384293123,1757321442384,-162.527608,0.00015527,2]
[384293124,1757321442393,-162.527608,0.00015527,2]
[384293125,1757321442402,-1500.0,0.00015539,2]
[384293126,1757321442412,-1500.0,0.00015539,2]
[384293127,1757321442421,-1500.0,0.00015565,2]
[384293128,1757321442431,-627.0,0.00015568,2]
[384293129,1757321442441,-1500.0,0.00015572,2]
[384293130,1757321442451,-1500.0,0.00015572,2]
[384293131,1757321442460,-627.0,0.00015577,2]
[384293132,1757321442469,-1500.0,0.00015599,2]
[384293134,1757321442479,-1500.0,0.00015599,2]
[384293135,1757321442489,-1500.0,0.000156,2]
[384293136,1757321442499,-2455.6711391,0.0001562,2]
[384293137,1757321442509,-1075.08,0.00015625,2]
[384293138,1757321442519,-480.0,0.00015626,2]
[384293139,1757321442528,-480.0,0.00015626,2]
[384293141,1757321442538,-626.75877546,0.00015633,2]
[384293143,1757321442547,-168.0,0.00015652,2]
[384293145,1757321442559,-176.01202403,0.00015687,2]
[384293147,1757321442568,-157.0,0.00015687,2]
[384293149,1757321442579,-157.0,0.00015687,2]
[384293150,1757321442588,-157.0,0.00015687,2]
[384293151,1757321442598,-201.61141933,0.00015687,2]
[384293152,1757321442607,-430.0,0.00015687,2]
[384293154,1757321442617,-480.0,0.00015687,2]
[384293157,1757321442627,-650.17,0.00015687,2]
[384293158,1757321442636,-937.86,0.00015688,2]
[384293160,1757321442646,-644.34,0.00015688,2]
[384293161,1757321442655,-613.59,0.00015688,2]
[384293162,1757321442665,-480.0,0.00015688,2]
[384293163,1757321442674,-480.0,0.00015688,2]
[384293164,1757321442685,-480.0,0.00015688,2]
[384293165,1757321442695,-667.92,0.00015688,2]
[384293166,1757321442705,-480.0,0.00015688,2]
[384293167,1757321442819,-480.0,0.00015689,2]
[384293168,1757321442829,-480.0,0.00015689,2]
[384293169,1757321442839,-386.960553,0.00015689,2]
[384293170,1757321442849,-1450.89,0.00015689,2]
[384293171,1757321442860,-879.59,0.00015689,2]
[384293172,1757321442871,-471.59055499,0.00015689,2]
[384293173,1757321442880,-574.46,0.00015689,2]
[384293174,1757321442890,-480.0,0.00015689,2]
[384293175,1757321442900,-4422.57,0.00015689,2]
[384293176,1757321442910,-480.0,0.00015689,2]
[384293177,1757321442919,-1378.86,0.00015689,2]
[384293178,1757321442929,-486.64,0.00015689,2]
[384293179,1757321442939,-590.58,0.00015689,2]
[384293180,1757321442951,-2407.38,0.00015689,2]
[384293181,1757321442960,-480.0,0.00015689,2]
[384293182,1757321442970,-151.0,0.00015689,2]
[384293183,1757321442979,-480.0,0.00015689,2]
[384293184,1757321442988,-627.0,0.00015691,2]
[384293185,1757321442997,-720.0,0.00015693,2]
[384293186,1757321443008,-627.0,0.00015695,2]
[384293187,1757321443017,-627.0,0.0001572,2]
[384293188,1757321443027,-260.0,0.00015781,2]
[384293189,1757321443037,-2000.0,0.000158,2]
[384293190,1757321443046,-6012.931046,0.00015826,2]
[384293191,1757321443057,-503.39821474,0.0001589,2]
[384293193,1757321443066,-1075.08,0.00015899,2]
[384293195,1757321443076,-480.0,0.000159,2]
[384293196,1757321443086,-480.0,0.000159,2]
[384293197,1757321443095,-151.0,0.000159,2]
[384293198,1757321443105,-162.527608,0.00015901,2]
[384293200,1757321443114,-162.527608,0.00015901,2]
[384293201,1757321443123,-162.527608,0.00015901,2]
[384293202,1757321443133,-162.527608,0.00015901,2]
[384293204,1757321443143,-192.0,0.00015961,2]
[384293206,1757321443152,-192.0,0.00015961,2]
[384293207,1757321443161,-430.0,0.00015961,2]
[384293208,1757321443171,-480.0,0.00015961,2]
[384293209,1757321443180,-650.17,0.00015961,2]
[384293210,1757321443189,-937.86,0.00015962,2]
[384293211,1757321443199,-644.34,0.00015962,2]
[384293212,1757321443208,-613.59,0.00015962,2]
[384293213,1757321443219,-480.0,0.00015962,2]
[384293214,1757321443229,-480.0,0.00015962,2]
[384293215,1757321443239,-480.0,0.00015962,2]
[384293216,1757321443248,-667.92,0.00015962,2]
[384293217,1757321443257,-480.0,0.00015962,2]
[384293219,1757321443268,-164.93356428,0.00015963,2]
[384293220,1757321443277,-240.60322629,0.00015963,2]
[384293221,1757321443287,-1450.89,0.00015963,2]
[384293222,1757321443297,-879.59,0.00015963,2]
[384293223,1757321443308,-574.46,0.00015963,2]
[384293224,1757321443319,-480.0,0.00015963,2]
[384293225,1757321443328,-4422.57,0.00015963,2]
[384293226,1757321443337,-480.0,0.00015963,2]
[384293227,1757321443346,-1378.86,0.00015963,2]
[384293228,1757321443355,-486.64,0.00015963,2]
[384293229,1757321443365,-590.58,0.00015963,2]
[384293230,1757321443374,-2407.38,0.00015963,2]
[384293231,1757321443385,-480.0,0.00015963,2]
[384293232,1757321443394,-480.0,0.00015963,2]
[384293233,1757321443403,-212.15028532,0.00016,2]
[384293234,1757321443412,-1500.0,0.00016,2]
[384293235,1757321443421,-1500.0,0.00016,2]
[384293236,1757321443431,-1500.0,0.00016,2]
[384293237,1757321443440,-1500.0,0.00016,2]
[384293238,1757321443450,-1500.0,0.00016,2]
[384293239,1757321443460,-1500.0,0.00016,2]
[384293240,1757321443469,-1437.06,0.00016,2]
[384293241,1757321443479,-3000.0,0.00016,2]
[384293242,1757321443489,-3000.0,0.0001601,2]
[384293243,1757321443499,-3000.0,0.0001602,2]
[384293244,1757321443509,-547.9342945,0.00016029,2]
[384293245,1757321443519,-3000.0,0.0001603,2]
[384293246,1757321443529,-3000.0,0.0001604,2]
[384293247,1757321443539,-3000.0,0.0001605,2]
[384293248,1757321443548,-3000.0,0.0001606,2]
[384293249,1757321443558,-3000.0,0.0001607,2]
[384293250,1757321443567,-2219.02646671,0.0001608,2]
[384293251,1757321443674,-780.97353329,0.0001608,2]
[384293252,1757321443684,-2000.0,0.00016087,2]
[384293253,1757321443693,-2000.0,0.00016087,2]
[384293254,1757321443703,-3000.0,0.0001609,2]
[384293255,1757321443712,-3000.0,0.000161,2]
[384293256,1757321443721,-3000.0,0.0001611,2]
[384293257,1757321443731,-162.527608,0.00016113,2]
[384293258,1757321443740,-162.527608,0.00016113,2]
[384293259,1757321443749,-162.527608,0.00016113,2]
[384293260,1757321443759,-162.527599,0.00016113,2]
[384293261,1757321443768,-2000.0,0.00016113,2]
[384293262,1757321443778,-3000.0,0.0001612,2]
[384293263,1757321443788,-2000.0,0.0001612,2]
[384293264,1757321443798,-2000.0,0.0001612,2]
[384293265,1757321443807,-3000.0,0.0001613,2]
[384293266,1757321443817,-3000.0,0.0001614,2]
[384293267,1757321443829,-2000.0,0.00016147,2]
[384293268,1757321443839,-2000.0,0.00016147,2]
[384293269,1757321443848,-2000.0,0.00016148,2]
[384293270,1757321443858,-3000.0,0.0001615,2]
[384293271,1757321443868,-2988.41860829,0.0001616,2]
[384293272,1757321443879,-11.58139171,0.0001616,2]
[384293273,1757321443889,-3000.0,0.0001617,2]
[384293274,1757321443898,-1075.08,0.00016173,2]
[384293275,1757321443907,-480.0,0.00016174,2]
[384293276,1757321443917,-480.0,0.00016174,2]
[384293277,1757321443926,-3000.0,0.0001618,2]
[384293278,1757321443935,-3000.0,0.0001619,2]
[384293279,1757321443945,-3000.0,0.000162,2]
[384293280,1757321443954,-3000.0,0.0001621,2]
[384293281,1757321443963,-3000.0,0.0001622,2]
[384293282,1757321443973,-3000.0,0.0001623,2]
[384293283,1757321443982,-430.0,0.00016235,2]
[384293284,1757321443992,-480.0,0.00016235,2]
[384293285,1757321444002,-650.17,0.00016235,2]
[384293286,1757321444011,-937.86,0.00016236,2]
[384293287,1757321444021,-644.34,0.00016236,2]
[384293288,1757321444031,-613.59,0.00016236,2]
[384293289,1757321444040,-480.0,0.00016236,2]
[384293290,1757321444050,-268.72593032,0.00016236,2]
[384293291,1757321444061,-480.0,0.00016236,2]
[384293292,1757321444071,-667.92,0.00016236,2]
[384293293,1757321444080,-480.0,0.00016236,2]
[384293294,1757321444089,-1450.89,0.00016237,2]
[384293295,1757321444099,-879.59,0.00016237,2]
[384293296,1757321444109,-574.46,0.00016237,2]
[384293297,1757321444118,-480.0,0.00016237,2]
[384293298,1757321444128,-4422.57,0.00016237,2]
[384293299,1757321444137,-480.0,0.00016237,2]
[384293300,1757321444147,-1378.86,0.00016237,2]
[384293301,1757321444156,-486.64,0.00016237,2]
[384293302,1757321444166,-590.58,0.00016237,2]
[384293303,1757321444175,-2407.38,0.00016237,2]
[384293304,1757321444184,-480.0,0.00016237,2]
[384293305,1757321444195,-480.0,0.00016237,2]
[384293306,1757321444205,-3000.0,0.0001624,2]
[384293307,1757321444215,-1341.6662672,0.0001624,2]
[384293308,1757321444228,-3000.0,0.0001625,2]
[384293309,1757321444237,-3000.0,0.0001626,2]
[384293310,1757321444246,-3000.0,0.0001627,2]
[384293311,1757321444256,-2504.52806675,0.00016276,2]
[384293312,1757321444266,-3000.0,0.0001628,2]
[384293313,1757321444277,-3000.0,0.0001629,2]
[384293314,1757321444287,-3000.0,0.000163,2]
[384293315,1757321444296,-3000.0,0.0001631,2]
[384293316,1757321444306,-3000.0,0.0001632,2]
[384293317,1757321444315,-360.0,0.00016329,2]